bitfinex-derivatives/quotes_BTCF0:USTF0_20250207
["timestamp","ask_amount","ask_price","bid_price","bid_amount"]
[1738955898281,0.2052839,97392.0,97390.0,0.3608]
[1738955898768,0.0513148,97404.0,97379.0,0.2053099]
[1738955898769,0.2053029,97383.0,97379.0,0.2053099]
[1738955898970,0.2053029,97383.0,97382.0,0.3608]
[1738955899779,0.2053131,97379.0,97373.0,0.36095402]
[1738955899966,0.2053139,97378.0,97373.0,0.37621483]
[1738955900172,0.001,97383.0,97373.0,0.01541483]
[1738955900472,0.2053218,97374.0,97373.0,0.00015402]
[1738955901978,0.2063218,97374.0,97373.0,0.00615402]
[1738955902673,0.001,97374.0,97373.0,0.21147792]
[1738955903372,0.001,97374.0,97373.0,0.00915402]
[1738955903678,0.1513592,97387.0,97379.0,0.2053105]
[1738955903868,0.1513592,97387.0,97386.0,0.3608]
[1738955904271,0.1513592,97387.0,97384.0,0.3608]
[1738955904574,0.2052593,97404.0,97396.0,0.2052745]
[1738955904781,0.0513005,97431.0,97405.0,0.2052565]
[1738955904968,0.48211826,97430.0,97406.0,0.1351]
[1738955905278,0.2052523,97407.0,97406.0,0.1351]
[1738955906274,0.205267,97400.0,97397.0,0.00015402]
[1738955906475,0.2052712,97398.0,97397.0,0.00015402]
[1738955907674,0.2062712,97398.0,97397.0,0.00015402]
[1738955909379,0.2062712,97398.0,97397.0,0.00115402]
[1738955912679,0.2062712,97398.0,97353.0,0.30673427]
[1738955912680,0.6618,97398.0,97353.0,0.30673427]
[1738955912879,0.205333,97369.0,97357.0,0.00052]
[1738955913186,0.12131826,97370.0,97358.0,0.3608]
[1738955913389,0.2053501,97361.0,97358.0,0.3608]
[1738955913575,0.2053535,97359.0,97358.0,0.3608]
[1738955914180,0.2053535,97359.0,97353.0,0.30673427]
[1738955914181,0.2053535,97359.0,97357.0,0.003]
[1738955915583,0.3608,97358.0,97357.0,0.003]
[1738955915785,0.5017,97358.0,97333.0,0.01517679]
[1738955915983,0.5017,97358.0,97330.0,0.1334]
[1738955915984,0.2053786,97348.0,97330.0,0.1334]
[1738955916181,0.1327,97347.0,97330.0,0.1334]
[1738955916382,0.2053897,97342.0,97330.0,0.1334]
[1738955916788,0.1327,97347.0,97330.0,0.1334]
[1738955916975,0.00015411,97346.0,97330.0,0.1334]
[1738955917181,0.2054125,97331.0,97330.0,0.1344]
[1738955917783,0.2054125,97331.0,97330.0,0.002]
[1738955918287,0.2054125,97331.0,97330.0,0.001]
[1738955918484,0.2064125,97331.0,97330.0,0.002]
[1738955919592,0.205421,97327.0,97326.0,0.00015411]
[1738955920791,0.206421,97327.0,97326.0,0.00015411]
[1738955921087,0.207421,97327.0,97326.0,0.00015411]
[1738955922788,0.002,97327.0,97303.0,0.3608]
[1738955922982,0.2054541,97312.0,97303.0,0.3608]
[1738955923397,0.2054541,97312.0,97304.0,0.01463253]
[1738955924597,0.2064541,97312.0,97304.0,0.01463253]
[1738955924897,0.2074541,97312.0,97304.0,0.01463253]
[1738955928487,0.2074541,97312.0,97303.0,0.3608]
[1738955929489,0.2074541,97312.0,97303.0,0.37517514]
[1738955933195,0.3608,97311.0,97301.0,0.00015411]
[1738955933496,0.2054738,97302.0,97301.0,0.00015411]
[1738955933690,0.5662738,97302.0,97301.0,0.00015411]
[1738955935093,0.5702738,97302.0,97301.0,0.00015411]
[1738955935294,0.5742738,97302.0,97301.0,0.00015411]
[1738955936390,0.2134738,97302.0,97301.0,0.00015411]
[1738955936593,0.2054828,97298.0,97295.0,0.2054885]
[1738955936895,0.2054828,97298.0,97289.0,0.3608]
[1738955937098,0.2054844,97297.0,97289.0,0.5663]
[1738955937298,0.008,97302.0,97289.0,0.3748575]
[1738955937497,0.2054972,97291.0,97289.0,0.3748575]
[1738955940897,0.2054972,97291.0,97289.0,0.0140575]
[1738955941100,0.12186847,97300.0,97286.0,0.00010348]
[1738955941101,0.2055054,97287.0,97286.0,0.00010348]
[1738955942201,0.3608,97294.0,97278.0,0.3608]
[1738955942403,0.2055223,97279.0,97278.0,0.3608]
[1738955942900,0.2055392,97271.0,97270.0,0.3608]
[1738955944301,0.2065392,97271.0,97270.0,0.3608]
[1738955944497,0.2075392,97271.0,97270.0,0.3608]
[1738955945101,0.002,97271.0,97270.0,0.3608]
[1738955948811,0.00015419,97280.0,97279.0,0.2055223]
[1738955949111,0.14983852,97285.0,97284.0,0.2055117]
[1738955949307,0.18111342,97290.0,97288.0,0.2055025]
[1738955949512,0.18111342,97290.0,97289.0,0.4894]
[1738955949909,0.1355,97313.0,97289.0,0.56324]
[1738955950111,0.3608,97314.0,97302.0,0.5662737]
[1738955950415,0.00015419,97306.0,97303.0,0.1295]
[1738955952009,0.00015419,97306.0,97305.0,0.2054674]
[1738955952317,0.33455188,97326.0,97305.0,0.07384]
[1738955952318,0.33363188,97326.0,97305.0,0.07384]
[1738955952624,0.2054616,97308.0,97306.0,0.07384]
[1738955952918,0.2104671,97306.0,97304.0,0.00052]
[1738955953120,0.2054695,97304.0,97303.0,0.1295]
[1738955953421,0.005,97306.0,97303.0,0.1295]
[1738955953422,0.01,97306.0,97303.0,0.1295]
[1738955953617,0.005,97306.0,97305.0,0.3608]
[1738955953821,0.00015419,97315.0,97309.0,0.2054574]
[1738955954022,0.00015419,97315.0,97314.0,0.3608]
[1738955955822,0.01415419,97315.0,97314.0,0.3618]
[1738955956520,0.01415419,97315.0,97314.0,0.001]
[1738955957024,0.01415419,97315.0,97314.0,0.3618]
[1738955957212,0.01415419,97315.0,97314.0,0.001]
[1738955960725,0.01415419,97315.0,97314.0,0.01547449]
[1738955960929,0.1339,97334.0,97314.0,0.01547449]
[1738955961126,0.1339,97334.0,97324.0,0.12171436]
[1738955961322,0.1339,97334.0,97325.0,0.1302]
[1738955962030,0.1429,97334.0,97325.0,0.1302]
[1738955962739,0.205409,97333.0,97329.0,0.3608]
[1738955963431,0.1519,97334.0,97329.0,0.3608]
[1738955963624,0.018,97334.0,97329.0,0.3608]
[1738955964033,0.009,97334.0,97329.0,0.3608]
[1738955964233,0.009,97333.0,97329.0,0.37646169]
[1738955964432,0.018,97333.0,97329.0,0.37746169]
[1738955964934,0.018,97333.0,97329.0,0.01666169]
[1738955965236,0.009,97333.0,97331.0,0.3608]
[1738955965831,0.009,97333.0,97331.0,0.4346]
[1738955966031,0.009,97333.0,97331.0,0.6400125]
[1738955966426,0.00015419,97339.0,97338.0,0.2053978]
[1738955967037,0.15214034,97353.0,97331.0,0.4346]
[1738955967339,0.15214034,97353.0,97348.0,0.3608]
[1738955967528,0.2053726,97350.0,97348.0,0.3608]
[1738955967728,0.15214034,97353.0,97340.0,0.48251436]
[1738955967933,0.2053914,97341.0,97340.0,0.48251436]
[1738955968136,0.2053914,97341.0,97340.0,0.3608]
[1738955968335,0.2053774,97348.0,97340.0,0.3608]
[1738955968833,0.00015411,97350.0,97340.0,0.3753621]
[1738955969032,0.2053914,97341.0,97340.0,0.3753621]
[1738955969628,0.2053914,97341.0,97340.0,0.3608]
[1738955970232,0.2053818,97346.0,97340.0,0.3608]
[1738955970536,0.001,97348.0,97340.0,0.3608]
[1738955970831,0.001,97348.0,97340.0,0.3628]
[1738955971039,0.00015411,97350.0,97340.0,0.3628]
[1738955971236,0.00015411,97350.0,97340.0,0.3648]
[1738955971437,0.00015411,97350.0,97340.0,0.3628]
[1738955972036,0.00015411,97350.0,97340.0,0.3608]
[1738955972232,0.205386,97344.0,97340.0,0.3608]
[1738955972736,0.3608,97345.0,97331.0,0.00015411]
[1738955972935,0.2054104,97332.0,97331.0,0.00015411]
[1738955974234,0.2054104,97332.0,97331.0,0.00515411]
[1738955974840,0.2054104,97332.0,97331.0,0.00715411]
[1738955975632,0.2054104,97332.0,97331.0,0.00015411]
[1738955975830,0.2054104,97332.0,97331.0,0.00315411]
[1738955976231,0.3608,97334.0,97310.0,0.12171436]
[1738955976437,0.2567641,97332.0,97331.0,0.001]
[1738955977541,0.2054336,97321.0,97320.0,0.12171436]
[1738955977744,0.0513528,97332.0,97317.0,0.00052]
[1738955977745,0.20544,97318.0,97317.0,0.00052]
[1738955977935,0.2054526,97312.0,97311.0,0.00015411]
[1738955979428,0.5662526,97312.0,97311.0,0.00015411]
[1738955979841,0.5672526,97312.0,97311.0,0.00015411]
[1738955980240,0.5662526,97312.0,97311.0,0.00015411]
[1738955980439,0.5672526,97312.0,97311.0,0.00015411]
[1738955981041,0.2054928,97293.0,97283.0,0.2055131]
[1738955981544,0.2054928,97293.0,97286.0,0.24552125]
[1738955982534,0.2074928,97293.0,97292.0,0.013]
[1738955982939,0.2074928,97293.0,97283.0,0.24567536]
[1738955982940,0.2055118,97284.0,97283.0,0.24567536]
[1738955985136,0.2065118,97284.0,97283.0,0.25067536]
[1738955985339,0.2075118,97284.0,97283.0,0.25967536]
[1738955985845,0.2075118,97284.0,97283.0,0.01415411]
[1738955986048,0.5683118,97284.0,97283.0,0.01415411]
[1738955987543,0.6421118,97284.0,97283.0,0.01415411]
[1738955988042,0.4366,97284.0,97274.0,0.00154205]
[1738955988243,0.2055307,97275.0,97274.0,0.00154205]
[1738955988832,0.5663307,97275.0,97274.0,0.00154205]
[1738955989033,0.205544,97269.0,97267.0,0.205547]
[1738955989243,0.205544,97269.0,97265.0,0.3608]
[1738955989244,0.01692,97284.0,97282.0,0.2055159]
[1738955989442,0.009,97284.0,97283.0,0.3608]
[1738955989639,0.2054843,97297.0,97293.0,0.2054913]
[1738955990645,0.2054843,97297.0,97293.0,0.5662913]
[1738955991033,0.2054843,97297.0,97293.0,0.3608]
[1738955991238,0.2054728,97303.0,97293.0,0.3608]
[1738955991646,0.00015419,97305.0,97293.0,0.48251436]
[1738955991840,0.00015419,97305.0,97301.0,0.3608]
[1738955993046,0.00915419,97305.0,97301.0,0.3608]
[1738955994147,0.01815419,97305.0,97301.0,0.3608]
[1738955995346,0.2054695,97304.0,97303.0,0.3608]
[1738955995539,0.01815419,97305.0,97303.0,0.3608]
[1738955995941,0.01815419,97305.0,97303.0,0.5662695]
[1738955996240,0.3608,97339.0,97312.0,0.2054526]
[1738955996442,0.3608,97339.0,97321.0,0.3608]
[1738955997346,0.2054217,97327.0,97321.0,0.3608]
[1738955998251,0.2054247,97326.0,97321.0,0.3618]
[1738955998641,0.018,97335.0,97321.0,0.3618]
[1738955998843,0.009,97327.0,97321.0,0.3618]
[1738955999038,0.018,97327.0,97321.0,0.3618]
[1738955999341,0.2054307,97323.0,97321.0,0.3608]
[1738955999541,0.2054307,97323.0,97321.0,0.37520647]
[1738956000653,0.2054307,97323.0,97321.0,0.37620647]
[1738956001043,0.2054307,97323.0,97321.0,0.3628]
[1738956001351,0.2054307,97323.0,97321.0,0.3608]
[1738956001650,0.2074307,97323.0,97321.0,0.3608]
[1738956002053,0.2054378,97319.0,97318.0,0.00015419]
[1738956003255,0.5662378,97319.0,97318.0,0.00015419]
[1738956004154,0.5672378,97319.0,97318.0,0.00015419]
[1738956004550,0.5672378,97319.0,97318.0,7.38e-06]
[1738956005446,0.002,97319.0,97318.0,7.38e-06]
[1738956005642,0.36095419,97338.0,97318.0,7.38e-06]
[1738956005643,0.00015419,97338.0,97318.0,7.38e-06]
[1738956005858,0.00015419,97338.0,97337.0,0.2053998]
[1738956006045,0.00015419,97338.0,97337.0,0.5661998]
[1738956006852,0.2053534,97360.0,97342.0,0.2053893]
[1738956007046,0.2053555,97359.0,97350.0,0.12171436]
[1738956007358,0.2053555,97359.0,97349.0,0.12171436]
[1738956007559,0.2053555,97359.0,97349.0,0.1215651]
[1738956007853,0.205379,97347.0,97345.0,0.3608]
[1738956010556,0.209379,97347.0,97345.0,0.3608]
[1738956010757,0.213379,97347.0,97345.0,0.3608]
[1738956010958,0.007,97347.0,97344.0,0.0001541]
[1738956011154,0.2053829,97345.0,97344.0,0.0001541]
[1738956012459,0.005,97347.0,97345.0,0.2053829]
[1738956012650,0.005,97347.0,97346.0,0.3608]
[1738956013249,0.005,97347.0,97346.0,0.6343]
[1738956013559,0.205351,97361.0,97346.0,0.6343]
[1738956013758,0.0001541,97364.0,97350.0,0.18237805]
[1738956013948,0.2053546,97359.0,97355.0,0.3608]
[1738956014143,0.2053597,97356.0,97355.0,0.3608]
[1738956015648,0.008,97361.0,97355.0,0.3608]
[1738956016157,0.2053513,97360.0,97355.0,0.3608]
[1738956016350,0.006,97356.0,97355.0,0.3618]
[1738956016857,0.012,97356.0,97355.0,0.3628]
[1738956017052,0.006,97356.0,97355.0,0.3618]
[1738956017249,0.008,97361.0,97355.0,0.3628]
[1738956017656,0.2053597,97356.0,97355.0,0.3628]
[1738956018160,0.2053597,97356.0,97355.0,0.3618]
[1738956018353,0.2113597,97356.0,97355.0,0.3628]
[1738956019759,0.2083597,97356.0,97355.0,0.3618]
[1738956019963,0.003,97356.0,97355.0,0.3608]
[1738956020258,0.002,97361.0,97355.0,0.3618]
[1738956020462,0.002,97361.0,97359.0,0.2053529]
[1738956020862,0.0001541,97364.0,97360.0,0.2053497]
[1738956021062,0.0001541,97364.0,97363.0,0.3608]
[1738956023364,0.0001541,97364.0,97363.0,0.3618]
[1738956024166,0.0001541,97364.0,97363.0,0.001]
[1738956025053,0.0001541,97364.0,97363.0,0.3618]
[1738956027260,0.0001541,97364.0,97363.0,0.001]
[1738956028762,0.205497,97364.0,97363.0,0.001]
[1738956028962,0.205383,97345.0,97344.0,0.0001541]
[1738956029860,0.205371,97351.0,97344.0,0.0001541]
[1738956030273,0.205371,97351.0,97344.0,0.0011541]
[1738956030569,0.001,97345.0,97344.0,0.0011541]
[1738956030959,0.001,97345.0,97344.0,0.0001541]
[1738956031272,0.206383,97345.0,97344.0,0.0001541]
[1738956032169,0.205383,97345.0,97344.0,0.0001541]
[1738956032565,0.205383,97345.0,97344.0,0.0031541]
[1738956033476,0.205383,97345.0,97344.0,0.0021541]
[1738956034060,0.568183,97345.0,97344.0,0.0001541]
[1738956034273,0.2054041,97335.0,97334.0,0.3608]
[1738956035975,0.2054041,97335.0,97334.0,0.3648]
[1738956036162,0.2054041,97335.0,97334.0,0.3668]
[1738956037274,0.0001541,97344.0,97334.0,0.3668]
[1738956037467,0.0001541,97344.0,97343.0,0.2053872]
[1738956038169,0.0001541,97344.0,97334.0,0.48894166]
[1738956038369,0.0001541,97344.0,97334.0,0.48842166]
[1738956038576,0.205398,97338.0,97334.0,0.48642166]
[1738956038870,0.2054011,97337.0,97334.0,0.48642166]
[1738956039063,0.2054011,97337.0,97334.0,0.3648]
[1738956039264,0.2054011,97337.0,97334.0,0.3608]
[1738956039873,0.2054011,97337.0,97334.0,0.3618]
[1738956040262,0.2054011,97337.0,97334.0,0.3648]
[1738956040967,0.0001541,97344.0,97334.0,0.3648]
[1738956041273,0.0001541,97344.0,97343.0,0.2053872]
[1738956041467,0.0001541,97344.0,97343.0,0.2807072]
[1738956041673,0.15019795,97364.0,97358.0,0.2053534]
[1738956041873,0.15019795,97364.0,97360.0,0.3608]
[1738956042968,0.15019795,97364.0,97363.0,0.205345]
[1738956045574,0.2053287,97371.0,97363.0,0.205345]
[1738956046275,0.0001541,97372.0,97363.0,0.001]
[1738956046475,0.0001541,97372.0,97368.0,0.3608]
[1738956046664,0.0001541,97372.0,97369.0,0.2053316]
[1738956046871,0.003,97371.0,97369.0,0.2053316]
[1738956047268,0.003,97371.0,97370.0,0.2053302]
[1738956047469,0.0031541,97372.0,97371.0,0.2053281]
[1738956048977,0.0021541,97372.0,97371.0,0.2053281]
[1738956049183,0.0021541,97372.0,97368.0,0.3608]
[1738956049681,0.2053282,97371.0,97368.0,0.3608]
[1738956050076,0.2053323,97369.0,97368.0,0.3608]
[1738956050288,0.2053492,97361.0,97360.0,0.37475231]
[1738956050476,0.2053379,97367.0,97360.0,0.37423231]
[1738956050869,0.2053379,97367.0,97360.0,0.57958161]
[1738956051774,0.0051541,97372.0,97360.0,0.37423231]
[1738956051979,0.0051541,97372.0,97370.0,0.2053298]
[1738956052673,0.0031541,97372.0,97369.0,0.3608]
[1738956052875,0.0001541,97372.0,97365.0,0.5661388]
[1738956053082,0.2053285,97371.0,97365.0,0.5661388]
[1738956053290,0.2053325,97369.0,97365.0,0.3608]
[1738956054089,0.0021541,97372.0,97365.0,0.3608]
[1738956054279,0.003,97371.0,97369.0,0.2053319]
[1738956054670,0.003,97371.0,97370.0,0.2053302]
[1738956055175,0.005,97371.0,97370.0,0.2053302]
[1738956055774,0.003,97371.0,97370.0,0.2053302]
[1738956055980,0.005,97371.0,97370.0,0.2053302]
[1738956056180,0.002,97371.0,97370.0,0.2053302]
[1738956056885,0.005,97371.0,97370.0,0.2053302]
[1738956057383,0.005,97371.0,97367.0,0.1318]
[1738956057686,0.005,97371.0,97365.0,0.3608]
[1738956057687,0.2053357,97368.0,97365.0,0.3608]
[1738956058586,0.2053357,97368.0,97365.0,0.37389503]
[1738956058777,0.005,97371.0,97365.0,0.37389503]
[1738956058979,0.002,97368.0,97365.0,0.37389503]
[1738956059892,0.2054802,97372.0,97365.0,0.37389503]
[1738956060080,0.005,97371.0,97365.0,0.37389503]
[1738956060383,0.005,97371.0,97365.0,0.57923453]
[1738956060690,0.002,97368.0,97366.0,0.2053375]
[1738956060890,0.003,97368.0,97366.0,0.2053375]
[1738956061085,0.003,97368.0,97365.0,0.37389503]
[1738956061288,0.003,97368.0,97367.0,0.2053366]
[1738956061974,0.003,97368.0,97365.0,0.37389503]
[1738956062685,0.2053387,97366.0,97365.0,0.37389503]
[1738956062881,0.001,97368.0,97365.0,0.37389503]
[1738956063187,0.005,97371.0,97365.0,0.37389503]
[1738956063384,0.002,97368.0,97365.0,0.37389503]
[1738956063589,0.002,97368.0,97367.0,0.2053366]
[1738956066289,0.1,97400.0,97367.0,0.39083783]
[1738956066592,0.00092,97392.0,97390.0,0.12149345]
[1738956066782,0.2052782,97395.0,97388.0,0.43568]
[1738956067988,0.2082782,97395.0,97388.0,0.43668]
[1738956068292,0.2082782,97395.0,97388.0,0.07588]
[1738956069390,0.009,97392.0,97390.0,0.001]
[1738956069991,0.2082782,97395.0,97388.0,0.08889813]
[1738956070192,0.2172782,97395.0,97388.0,0.08989813]
[1738956070381,0.2142782,97395.0,97388.0,0.08889813]
[1738956070587,0.001,97392.0,97390.0,0.001]
[1738956070887,0.01,97392.0,97390.0,0.002]
[1738956071192,0.009,97392.0,97390.0,0.2062864]
[1738956071786,0.009,97392.0,97391.0,0.07472]
[1738956072182,0.09899999,97400.0,97399.0,0.2052691]
[1738956072386,0.2052161,97425.0,97399.0,0.3608]
[1738956072588,0.15019795,97427.0,97414.0,0.3608]
[1738956072890,0.15019795,97427.0,97425.0,0.3608]
[1738956073783,0.2052122,97426.0,97425.0,0.3608]
[1738956074186,0.2052122,97426.0,97425.0,0.3618]
[1738956074478,0.2052122,97426.0,97425.0,0.3628]
[1738956074990,0.16019795,97427.0,97425.0,0.3628]
[1738956075186,0.15919795,97427.0,97425.0,0.3618]
[1738956075493,0.001,97426.0,97425.0,0.002]
[1738956075692,0.004,97426.0,97425.0,0.002]
[1738956076589,0.001,97426.0,97425.0,0.002]
[1738956076795,0.15319795,97427.0,97425.0,0.001]
[1738956076991,0.15119795,97427.0,97426.0,0.5660122]
[1738956077294,0.00015401,97436.0,97432.0,0.2051991]
[1738956077496,0.00015401,97436.0,97435.0,0.3608]
[1738956078593,0.00115401,97436.0,97435.0,0.3608]
[1738956079490,0.00115401,97436.0,97435.0,0.3618]
[1738956080190,0.00015401,97436.0,97435.0,0.3618]
[1738956080385,0.00015401,97436.0,97435.0,0.3628]
[1738956080700,0.00015401,97436.0,97435.0,0.01503845]
[1738956082193,0.20534521,97436.0,97435.0,0.01503845]
[1738956083000,0.20534521,97436.0,97435.0,0.002]
[1738956083193,0.36095401,97436.0,97417.0,0.07412]
[1738956083400,0.2052291,97418.0,97406.0,0.3608]
[1738956083595,0.2577,97417.0,97416.0,0.01327805]
[1738956083901,0.3966,97417.0,97416.0,0.01327805]
[1738956084698,0.3966,97417.0,97416.0,0.00015401]
[1738956085899,0.6167,97417.0,97387.0,0.3608]
[1738956086202,0.2052824,97393.0,97387.0,0.00052]
[1738956086504,0.2052824,97393.0,97380.0,0.48229345]
[1738956086905,0.2052824,97393.0,97391.0,0.01430169]
[1738956087106,0.2052824,97393.0,97391.0,0.0015402]
[1738956088003,0.2052824,97393.0,97391.0,0.0055402]
[1738956088404,0.2052824,97393.0,97391.0,0.0085402]
[1738956089012,0.3982,97392.0,97391.0,0.0055402]
[1738956089196,0.3982,97392.0,97391.0,0.0085402]
[1738956090300,0.759,97392.0,97391.0,0.0045402]
[1738956090494,0.76,97392.0,97391.0,0.0045402]
[1738956090700,0.9801,97392.0,97382.0,0.00015401]
[1738956091003,0.2053028,97383.0,97382.0,0.00015401]
[1738956092311,0.2053345,97368.0,97367.0,0.24552125]
[1738956092898,0.5952345,97368.0,97367.0,0.24552125]
[1738956093108,0.2053471,97362.0,97361.0,0.30690157]
[1738956093811,0.2053534,97359.0,97358.0,0.00015401]
[1738956094003,0.5661534,97359.0,97358.0,0.00015401]
[1738956095001,0.2053405,97366.0,97358.0,0.00015401]
[1738956095202,0.00015401,97377.0,97376.0,0.2053176]
[1738956095410,0.2052503,97408.0,97401.0,0.205264]
[1738956095706,0.1351,97409.0,97398.0,0.18235773]
[1738956095908,0.1351,97409.0,97387.0,0.3608]
[1738956096396,0.2052589,97404.0,97398.0,0.205271]
[1738956096710,0.2052574,97405.0,97401.0,0.002]
[1738956096907,0.01115401,97408.0,97401.0,0.002]
[1738956096908,0.2052628,97402.0,97401.0,0.002]
[1738956097313,0.2052628,97402.0,97401.0,0.001]
[1738956098107,0.2052628,97402.0,97395.0,0.3608]
[1738956098814,0.2062628,97402.0,97395.0,0.3608]
[1738956099316,0.00015401,97408.0,97390.0,0.18235773]
[1738956099507,0.2052887,97390.0,97388.0,0.00015401]
[1738956101604,0.2052887,97390.0,97388.0,0.00415401]
[1738956101808,0.2052887,97390.0,97388.0,0.00915401]
[1738956102008,0.2052887,97390.0,97388.0,0.00515401]
[1738956102207,0.2052887,97390.0,97388.0,0.00915401]
[1738956102510,0.3608,97389.0,97388.0,0.00515401]
[1738956103214,0.8809,97389.0,97388.0,1e-08]
[1738956103515,0.2053557,97358.0,97345.0,0.2053826]
[1738956103808,0.2053557,97358.0,97348.0,0.2053758]
[1738956104014,0.2053557,97358.0,97346.0,0.01279708]
[1738956104318,0.3608,97362.0,97340.0,0.18235773]
[1738956104619,0.3608,97362.0,97306.0,0.0513658]
[1738956104620,0.2053846,97345.0,97330.0,0.18235773]
[1738956104815,0.2054026,97336.0,97327.0,0.1396]
[1738956105004,0.2054026,97336.0,97326.0,0.36972757]
[1738956105208,0.2054026,97336.0,97334.0,0.30705566]
[1738956106514,0.1319,97335.0,97334.0,0.31605566]
[1738956106817,0.2054295,97323.0,97314.0,0.2054476]
[1738956107015,0.3608,97328.0,97314.0,0.2054476]
[1738956107216,0.3608,97328.0,97318.0,0.18235773]
[1738956107417,0.205421,97327.0,97318.0,0.18235773]
[1738956107622,0.2054352,97321.0,97310.0,0.18235773]
[1738956107824,0.3608,97331.0,97310.0,0.18235773]
[1738956108118,0.00154179,97333.0,97312.0,0.00015409]
[1738956108119,0.2054505,97313.0,97312.0,0.00015409]
[1738956109612,0.5662505,97313.0,97312.0,0.00015409]
[1738956109925,0.2054759,97301.0,97300.0,0.1]
[1738956110122,0.5662759,97301.0,97300.0,0.1]
[1738956111312,0.5672759,97301.0,97300.0,0.106]
[1738956112424,0.5682759,97301.0,97300.0,0.114]
[1738956114414,0.5682759,97301.0,97300.0,0.01210698]
[1738956114922,0.5682759,97301.0,97279.0,0.3608]
[1738956114923,0.5829,97301.0,97279.0,0.3608]
[1738956115117,0.2054981,97291.0,97279.0,0.3608]
[1738956116022,0.2054981,97291.0,97279.0,0.3698]
[1738956116821,0.2054981,97291.0,97279.0,0.3788]
[1738956116822,0.2064981,97291.0,97279.0,0.3788]
[1738956117625,0.2074981,97291.0,97279.0,0.3748]
[1738956117826,0.002,97291.0,97280.0,0.18235773]
[1738956118023,0.002,97291.0,97287.0,0.3608]
[1738956118222,0.002,97291.0,97289.0,0.2054996]
[1738956118525,0.00015409,97310.0,97296.0,0.2054856]
[1738956118827,0.00015409,97310.0,97297.0,0.4919]
[1738956120419,0.00015409,97310.0,97297.0,0.4939]
[1738956120624,0.2054629,97308.0,97297.0,0.4939]
[1738956121821,0.00015409,97310.0,97297.0,0.002]
[1738956121822,0.2054822,97298.0,97297.0,0.002]
[1738956122027,0.2054822,97298.0,97297.0,0.004]
[1738956123136,0.5662822,97298.0,97297.0,0.004]
[1738956123530,0.3608,97298.0,97287.0,0.3608]
[1738956123726,0.2055033,97288.0,97287.0,0.3608]
[1738956123922,0.2055385,97272.0,97270.0,0.13902]
[1738956124128,0.2055385,97272.0,97270.0,0.1511017]
[1738956124730,0.00015418,97281.0,97279.0,0.2055212]
[1738956124927,0.00015418,97281.0,97280.0,0.3608]
[1738956125926,0.00115418,97281.0,97280.0,0.3608]
[1738956126522,0.001,97298.0,97297.0,0.2054843]
[1738956126832,0.00154245,97308.0,97297.0,0.3608]
[1738956127033,0.00154245,97308.0,97307.0,0.3608]
[1738956128138,0.00854245,97308.0,97307.0,0.3608]
[1738956130537,0.00854245,97308.0,97298.0,0.00015418]
[1738956131035,0.2054792,97300.0,97298.0,0.00015418]
[1738956131932,0.00854245,97308.0,97298.0,0.00015418]
[1738956132240,0.00854245,97308.0,97301.0,0.2054745]
[1738956132430,0.2054703,97304.0,97298.0,0.36095418]
[1738956132625,0.00854245,97308.0,97305.0,0.205466]
[1738956133836,0.21400415,97308.0,97305.0,0.205466]
[1738956134033,0.21400415,97308.0,97298.0,0.36095418]
[1738956134034,0.00454245,97308.0,97307.0,0.2054632]
[1738956134346,0.00454245,97308.0,97307.0,0.5662632]
[1738956134635,0.00154245,97308.0,97307.0,0.5662632]
[1738956135027,0.00354245,97308.0,97307.0,0.5662632]
[1738956135351,0.00454245,97308.0,97307.0,0.5662632]
[1738956135738,0.00254245,97308.0,97307.0,0.5682632]
[1738956136134,0.20800355,97308.0,97307.0,0.3628]
[1738956136445,0.20800355,97308.0,97307.0,0.002]
[1738956136640,0.00154245,97308.0,97298.0,0.00015418]
[1738956136945,0.2054801,97299.0,97298.0,0.00015418]
[1738956138334,0.5662801,97299.0,97298.0,0.00115418]
[1738956138638,0.5662801,97299.0,97274.0,0.4632314]
[1738956138639,0.0513726,97295.0,97274.0,0.4632314]
[1738956138946,0.2055244,97278.0,97274.0,0.4632314]
[1738956139340,0.2055244,97278.0,97274.0,0.127]
[1738956139843,0.3608,97287.0,97276.0,0.01234958]
[1738956139844,0.205512,97284.0,97276.0,0.01234958]
[1738956140050,0.205512,97284.0,97276.0,0.21787738]
[1738956140236,0.205512,97284.0,97277.0,0.18509469]
[1738956140438,0.205512,97284.0,97277.0,0.39062109]
[1738956140648,0.36095418,97287.0,97277.0,0.39062109]
[1738956140649,0.001,97278.0,97277.0,0.39562109]
[1738956141036,0.001,97284.0,97277.0,0.18509469]
[1738956141243,0.002,97284.0,97283.0,0.3608]
[1738956141742,0.001,97284.0,97283.0,0.3608]
[1738956142346,0.001,97284.0,97283.0,0.5663138]
[1738956143850,0.00015418,97287.0,97286.0,0.2055075]
[1738956145537,0.00015418,97287.0,97286.0,0.5663075]
[1738956145740,0.14938766,97303.0,97302.0,0.2054737]
[1738956145939,0.14938766,97303.0,97302.0,0.9270737]
[1738956146845,0.00015418,97312.0,97302.0,0.7216]
[1738956147054,0.5809,97351.0,97331.0,0.2054125]
[1738956147360,0.5809,97351.0,97346.0,0.2053807]
[1738956147361,0.00064,97351.0,97346.0,0.2053807]
[1738956147541,0.1393,97358.0,97346.0,0.2053807]
[1738956147741,0.1393,97358.0,97341.0,0.3608]
[1738956147942,0.205389,97343.0,97341.0,0.3608]
[1738956148148,0.205389,97343.0,97333.0,0.3608]
[1738956148349,0.3608,97346.0,97333.0,0.3608]
[1738956148844,0.21023552,97344.0,97333.0,0.3608]
[1738956149051,0.2054061,97334.0,97333.0,0.3608]
[1738956149952,0.2054061,97334.0,97333.0,0.3618]
[1738956150151,0.21023552,97344.0,97333.0,0.001]
[1738956150455,0.21023552,97344.0,97332.0,0.00015409]
[1738956150456,0.2054083,97333.0,97332.0,0.00015409]
[1738956150846,0.008,97334.0,97332.0,0.00015409]
[1738956151655,0.008,97334.0,97333.0,0.2054083]
[1738956152244,0.017,97334.0,97333.0,0.2054083]
[1738956152547,0.008,97333.0,97332.0,0.00115409]
[1738956154356,0.205363,97355.0,97339.0,0.2053937]
[1738956154655,0.205363,97355.0,97350.0,0.3608]
[1738956155442,0.43796,97370.0,97350.0,0.5661706]
[1738956155443,0.2053336,97369.0,97350.0,0.5661706]
[1738956155647,0.205336,97368.0,97353.0,0.2053645]